bitfinex/quotes_SOLUSD_20251018
["timestamp","ask_amount","ask_price","bid_price","bid_amount"]
[1760817304750,4.13286024,186.58,186.57,16.11646834]
[1760817307253,4.13286024,186.58,186.53,6.04095704]
[1760817307452,4.14286024,186.57,186.53,6.04095704]
[1760817307766,4.14286024,186.57,186.55,16.11646834]
[1760817309185,4.14286024,186.56,186.55,16.11646834]
[1760817309670,4.14286024,186.56,186.51,0.68]
[1760817309869,3.46286024,186.54,186.53,16.11646834]
[1760817310071,4.14286024,186.54,186.53,16.11646834]
[1760817310461,3.46286024,186.54,186.53,16.11646834]
[1760817311967,3.46286024,186.56,186.53,16.79646834]
[1760817312153,3.46286024,186.56,186.54,0.68]
[1760817312754,3.46286024,186.56,186.53,22.15748753]
[1760817312971,3.46286024,186.55,186.53,6.04101919]
[1760817313171,3.46286024,186.55,186.54,16.12079851]
[1760817313362,3.46286024,186.56,186.54,16.80079851]
[1760817313557,3.46286024,186.57,186.54,16.80079851]
[1760817313967,3.46286024,186.57,186.53,5.36101919]
[1760817314163,3.46286024,186.57,186.55,16.11993229]
[1760817314370,3.46286024,186.57,186.55,16.79993229]
[1760817315868,4.15286024,186.58,186.55,16.79993229]
[1760817316184,106.25286024,186.58,186.55,16.79993229]
[1760817319578,102.79,186.58,186.55,16.79993229]
[1760817321786,102.79,186.58,186.55,0.68]
[1760817321973,102.79,186.58,186.56,16.11993229]
[1760817323586,102.79,186.58,186.55,0.68]
[1760817323881,102.79,186.58,186.55,16.79993229]
[1760817324376,102.79,186.58,186.55,22.16041864]
[1760817324582,102.1,186.58,186.56,0.68]
[1760817324770,102.1,186.58,186.56,16.11906616]
[1760817324960,102.79,186.58,186.56,16.11906616]
[1760817329279,0.69,186.57,186.56,16.11906616]
[1760817329480,4.15286024,186.57,186.53,5.3607855]
[1760817329681,0.69,186.56,186.54,16.11906616]
[1760817330082,3.46286024,186.57,186.54,16.11906616]
[1760817330283,0.69,186.56,186.54,16.11906616]
[1760817331798,106.25286024,186.58,186.54,16.79906616]
[1760817331994,0.69,186.57,186.54,22.1598449]
[1760817332201,0.69,186.57,186.54,6.04077874]
[1760817332496,0.69,186.57,186.55,16.12079851]
[1760817333697,106.25286024,186.58,186.55,16.12079851]
[1760817333882,106.25286024,186.58,186.55,16.80079851]
[1760817334801,105.56286024,186.58,186.55,16.12079851]
[1760817335103,102.79,186.58,186.55,16.80079851]
[1760817335602,102.79,186.58,186.55,0.68]
[1760817335981,102.79,186.58,186.55,16.79993229]
[1760817337103,102.79,186.58,186.55,6.04045344]
[1760817337489,102.79,186.58,186.56,16.11993229]
[1760817337895,102.1,186.58,186.56,16.79993229]
[1760817338079,102.1,186.58,186.56,16.11993229]
[1760817338400,102.79,186.58,186.56,16.11993229]
[1760817339694,102.1,186.58,186.57,0.68]
[1760817340383,102.1,186.58,186.57,16.79733419]
[1760817340784,102.1,186.58,186.57,16.11733419]
[1760817351705,102.76,186.58,186.57,16.11733419]
[1760817352017,102.76,186.58,186.56,16.11733419]
[1760817352202,0.66,186.57,186.56,16.11733419]
[1760817352818,0.66,186.57,186.55,5.36042665]
[1760817353202,0.66,186.57,186.54,16.83906616]
[1760817353403,0.66,186.57,186.54,0.72]
[1760817362310,105.56286024,186.58,186.55,0.72]
[1760817362311,106.22286024,186.58,186.55,0.72]
[1760817365143,0.66,186.57,186.54,0.72]
[1760817366830,0.72,186.56,186.53,16.11993229]
[1760817367128,0.72,186.55,186.5,3.46286024]
[1760817367308,0.72,186.55,186.52,0.67]
[1760817367511,0.72,186.55,186.52,16.79079851]
[1760817367708,0.72,186.55,186.52,0.67]
[1760817367929,0.72,186.55,186.51,21.48327254]
[1760817368109,0.72,186.54,186.51,21.48327254]
[1760817368318,0.72,186.56,186.52,0.67]
[1760817368521,0.72,186.55,186.52,0.67]
[1760817371026,3.46286024,186.56,186.53,0.67]
[1760817371231,4.18286024,186.57,186.53,0.67]
[1760817372138,102.1,186.56,186.53,0.67]
[1760817373038,102.82,186.56,186.53,0.67]
[1760817374735,0.7,186.55,186.51,16.12166483]
[1760817374938,0.7,186.55,186.52,0.72]
[1760817376245,102.1,186.56,186.53,0.72]
[1760817376618,102.8,186.56,186.53,0.72]
[1760817376924,102.1,186.56,186.54,0.72]
[1760817377633,102.8,186.56,186.53,0.72]
[1760817377832,102.1,186.56,186.53,5.36097053]
[1760817378041,102.1,186.56,186.54,0.72]
[1760817378744,102.1,186.56,186.54,16.11906616]
[1760817378925,102.8,186.56,186.54,16.11906616]
[1760817379131,102.8,186.56,186.53,5.36097053]
[1760817379339,102.8,186.56,186.53,6.08097053]
[1760817379541,102.8,186.56,186.53,22.20003669]
[1760817381437,102.1,186.56,186.54,0.72]
[1760817381746,102.1,186.56,186.55,0.72]
[1760817381952,102.1,186.56,186.54,0.72]
[1760817383528,102.8,186.56,186.53,21.48003669]
[1760817384248,102.1,186.56,186.54,0.72]
[1760817384541,102.1,186.56,186.54,16.83906616]
[1760817384742,102.1,186.56,186.54,22.19963751]
[1760817384935,102.8,186.56,186.54,21.47963751]
[1760817385329,102.1,186.56,186.54,22.19963751]
[1760817385731,102.1,186.56,186.55,0.72]
[1760817385931,102.1,186.56,186.54,21.47963751]
[1760817386130,102.1,186.56,186.54,22.19963751]
[1760817387555,3.46286024,186.59,186.55,0.72]
[1760817387936,3.46286024,186.59,186.55,16.11820013]
[1760817388136,3.46286024,186.59,186.55,16.83820013]
[1760817388634,3.46286024,186.59,186.55,22.19853585]
[1760817389248,3.46286024,186.59,186.56,0.72]
[1760817390132,4.16286024,186.59,186.56,0.72]
[1760817391051,3.46286024,186.59,186.55,22.19853585]
[1760817391257,0.7,186.58,186.55,22.19853585]
[1760817393240,4.16286024,186.59,186.55,22.19853585]
[1760817393747,4.16286024,186.59,186.56,0.72]
[1760817394055,3.46286024,186.59,186.56,0.72]
[1760817394259,4.16286024,186.59,186.56,0.72]
[1760817398140,4.16286024,186.59,186.55,22.19853585]
[1760817399359,4.16286024,186.59,186.55,21.47853585]
[1760817399661,4.16286024,186.59,186.56,0.72]
[1760817400741,4.16286024,186.59,186.56,6.08014977]
[1760817401255,0.7,186.59,186.56,6.08014977]
[1760817403161,0.7,186.59,186.56,0.72]
[1760817403348,4.16286024,186.59,186.56,0.72]
[1760817404472,4.16286024,186.59,186.55,22.14861414]
[1760817404844,4.16286024,186.59,186.55,6.03041401]
[1760817405068,4.16286024,186.59,186.55,21.47861414]
[1760817405269,4.16286024,186.59,186.56,0.67]
[1760817406146,4.17286024,186.58,186.55,16.11820013]
[1760817406360,4.17286024,186.58,186.55,16.78820013]
[1760817406559,3.46286024,186.57,186.55,16.11820013]
[1760817406766,4.17286024,186.56,186.52,0.67]
[1760817406955,4.17286024,186.56,186.52,16.79079851]
[1760817407152,0.71,186.55,186.52,16.12079851]
[1760817407354,0.71,186.55,186.52,0.67]
[1760817407961,3.46286024,186.56,186.52,0.67]
[1760817408166,4.17286024,186.56,186.53,0.67]
[1760817409867,102.1,186.57,186.53,6.03101889]
[1760817409868,105.56286024,186.57,186.53,6.03101889]
[1760817410067,105.56286024,186.57,186.54,0.67]
[1760817410577,102.1,186.57,186.55,0.67]
[1760817411279,102.1,186.57,186.54,21.47974957]
[1760817411566,102.1,186.57,186.55,0.67]
[1760817413353,102.1,186.57,186.56,16.11906616]
[1760817415055,102.1,186.57,186.56,16.78906616]
[1760817416157,3.46286024,186.58,186.56,16.78906616]
[1760817416358,3.46286024,186.59,186.57,0.67]
[1760817416559,3.46286024,186.59,186.55,5.36047691]
[1760817416761,3.46286024,186.59,186.56,0.67]
[1760817416971,3.46286024,186.59,186.58,16.11820013]
[1760817419280,3.46286024,186.6,186.58,16.78820013]
[1760817419481,3.46286024,186.6,186.58,16.11820013]
[1760817419788,3.46286024,186.62,186.59,0.67]
[1760817420277,129.15286024,186.63,186.6,0.67]
[1760817420467,129.15286024,186.63,186.6,16.78560258]
[1760817423091,129.15286024,186.63,186.6,0.67]
[1760817423388,129.15286024,186.63,186.61,16.11560258]
[1760817425078,128.44286024,186.63,186.61,16.11560258]
[1760817425991,22.88,186.63,186.61,22.14432715]
[1760817426285,0.1,186.64,186.62,0.67]
[1760817426672,0.1,186.64,186.63,0.67]
[1760817427278,0.1,186.64,186.63,4.13286024]
[1760817433072,3.56286024,186.64,186.63,4.13286024]
[1760817433588,0.1,186.64,186.63,4.13286024]
[1760817433886,4.23286024,186.64,186.63,3.46286024]
[1760817434785,4.23286024,186.64,186.59,22.88]
[1760817434990,3.46286024,186.61,186.6,16.82473692]
[1760817437176,3.46286024,186.62,186.6,16.82473692]
[1760817437576,3.46286024,186.62,186.6,0.71]
[1760817437783,3.46286024,186.62,186.61,16.11560258]
[1760817440587,3.46286024,186.62,186.61,16.82560258]
[1760817441096,3.46286024,186.62,186.61,16.11560258]
[1760817443792,102.1,186.63,186.61,16.82560258]
[1760817444002,102.1,186.63,186.61,16.11560258]
[1760817444196,102.1,186.63,186.62,0.71]
[1760817444792,102.1,186.63,186.59,28.2392965]
[1760817445097,105.56286024,186.63,186.62,16.11473692]
[1760817445598,106.23286024,186.63,186.62,16.11473692]
[1760817445802,105.56286024,186.63,186.62,16.11473692]
[1760817450599,106.23286024,186.63,186.59,0.71]
[1760817450793,3.46286024,186.62,186.6,0.71]
[1760817451003,0.67,186.61,186.58,5.35958929]
[1760817451185,0.67,186.61,186.58,6.06958929]
[1760817451388,4.13286024,186.62,186.61,16.11560258]
[1760817452110,3.46286024,186.62,186.61,16.11560258]
[1760817453011,105.56286024,186.63,186.61,16.11560258]
[1760817453198,105.56286024,186.63,186.62,0.71]
[1760817453518,102.1,186.63,186.62,0.71]
[1760817454117,102.1,186.63,186.62,16.82560258]
[1760817459521,106.23286024,186.63,186.62,16.11560258]
[1760817459821,106.23286024,186.63,186.59,0.71]
[1760817460022,3.46286024,186.61,186.6,16.11560258]
[1760817460422,0.67,186.62,186.6,16.11560258]
[1760817460618,4.13286024,186.62,186.6,16.11560258]
[1760817462618,3.46286024,186.62,186.6,16.11560258]
[1760817462818,3.46286024,186.62,186.6,16.82560258]
[1760817463128,3.46286024,186.61,186.6,16.82560258]
[1760817463331,3.46286024,186.61,186.6,0.71]
[1760817464735,3.46286024,186.61,186.6,16.82560258]
[1760817465507,102.1,186.63,186.6,16.82560258]
[1760817465508,3.46286024,186.62,186.6,16.82560258]
[1760817465714,105.56286024,186.63,186.61,0.7]
[1760817466203,105.56286024,186.63,186.62,16.11560258]
[1760817466409,102.1,186.63,186.62,16.81560258]
[1760817468432,105.56286024,186.63,186.62,16.81560258]
[1760817471712,102.1,186.63,186.62,16.81560258]
[1760817472636,0.1,186.64,186.62,16.81560258]
[1760817473025,0.1,186.64,186.61,5.35872745]
[1760817473333,0.1,186.64,186.63,16.81300588]
[1760817481047,0.1,186.64,186.63,22.17120123]
[1760817481239,0.1,186.64,186.63,16.81300588]
[1760817483428,0.1,186.64,186.63,16.11300588]
[1760817483633,0.1,186.64,186.61,6.05874142]
[1760817483832,0.1,186.64,186.62,16.11300588]
[1760817484039,0.1,186.64,186.62,16.81300588]
[1760817484429,0.1,186.64,186.63,0.7]
[1760817484635,0.1,186.64,186.63,4.16286024]
[1760817488362,0.1,186.64,186.63,3.46286024]
[1760817488560,0.1,186.64,186.63,4.18286024]
[1760817497253,0.1,186.64,186.63,9.54105559]
[1760817499574,0.1,186.64,186.63,4.12286024]
[1760817505966,0.1,186.64,186.63,3.46286024]
[1760817508782,0.1,186.64,186.63,4.12286024]
[1760817520298,0.1,186.64,186.63,3.46286024]
[1760817521190,0.1,186.64,186.63,4.12286024]
[1760817531184,0.1,186.64,186.63,9.48105559]
[1760817539904,0.1,186.64,186.63,4.12286024]
[1760817545109,0.1,186.64,186.63,20.3575308]
[1760817545411,0.1,186.64,186.63,23.82039104]
[1760817545788,4.13286024,186.71,186.63,37.21587943]
[1760817545984,4.13286024,186.71,186.64,0.65]
[1760817546290,4.13286024,186.71,186.65,3.46286024]
[1760817546611,4.13286024,186.71,186.66,0.65]
[1760817546801,0.67,186.7,186.66,0.65]
[1760817547218,102.89,186.72,186.67,3.46286024]
[1760817547515,105.66286024,186.72,186.68,0.7]
[1760817547826,106.35286024,186.72,186.68,0.7]
[1760817548186,102.2,186.72,186.69,16.80867989]
[1760817548808,102.89,186.72,186.69,0.7]
[1760817549015,102.2,186.72,186.7,16.80781497]
[1760817549697,102.2,186.72,186.7,16.26551562]
[1760817551390,102.2,186.72,186.71,0.7]
[1760817554121,102.2,186.72,186.71,6.05589952]
[1760817555724,0.1,186.72,186.71,6.05589952]
[1760817556224,0.1,186.72,186.71,6.01589952]
[1760817556825,0.1,186.72,186.7,20.92165399]
[1760817557018,0.78,186.72,186.7,15.56551562]
[1760817557218,0.1,186.72,186.7,15.56551562]
[1760817558022,0.1,186.72,186.7,21.58159665]
[1760817558226,0.1,186.72,186.71,0.66]
[1760817558612,0.1,186.72,186.71,5.22778711]
[1760817562120,0.1,186.72,186.71,10.58368663]
[1760817566222,0.1,186.72,186.71,9.92368663]
[1760817566607,0.1,186.72,186.71,10.58368663]
[1760817567618,0.1,186.72,186.71,9.92368663]
[1760817567819,0.1,186.72,186.71,10.58368663]
[1760817576831,4.24286024,186.72,186.71,4.56778711]
[1760817579533,0.78,186.72,186.71,4.56778711]
[1760817579932,0.1,186.72,186.71,4.56778711]
[1760817580252,0.1,186.72,186.71,5.22778711]
[1760817582647,0.1,186.72,186.71,10.58368663]
[1760817583436,0.1,186.72,186.71,5.22778711]
[1760817584047,0.1,186.72,186.71,10.58368663]
[1760817589149,0.1,186.72,186.71,5.22778711]
[1760817589352,0.1,186.72,186.71,4.56778711]
[1760817589552,0.1,186.72,186.71,5.22778711]
[1760817600347,0.82,186.72,186.71,4.56778711]
[1760817600667,0.1,186.72,186.71,4.56778711]
[1760817601670,0.1,186.72,186.71,5.22778711]
[1760817602265,0.82,186.72,186.71,4.56778711]
[1760817602562,0.82,186.72,186.67,6.01703433]
[1760817602872,0.72,186.71,186.68,5.22778711]
[1760817603365,4.28286024,186.72,186.68,0.66]
[1760817603538,4.28286024,186.72,186.69,4.56778711]
[1760817604139,0.1,186.72,186.7,0.66]
[1760817604671,0.1,186.72,186.71,0.66]
[1760817605473,0.1,186.72,186.7,4.56778711]
[1760817605474,0.1,186.72,186.7,5.22778711]
[1760817605669,3.56286024,186.72,186.7,4.56778711]
[1760817605965,4.18286024,186.71,186.68,4.56778711]
[1760817606269,3.46286024,186.7,186.68,5.22778711]
[1760817606776,3.46286024,186.7,186.68,0.66]
[1760817606954,3.46286024,186.7,186.67,0.66]
[1760817607156,3.46286024,186.7,186.67,4.12286024]
[1760817607463,3.46286024,186.69,186.67,4.12286024]
[1760817608172,4.15286024,186.68,186.61,3.46286024]
[1760817608464,3.46286024,186.66,186.64,3.46286024]
[1760817608871,3.46286024,186.66,186.6,3.46286024]
[1760817608872,4.15286024,186.65,186.61,6.0187088]
[1760817609066,4.15286024,186.65,186.63,5.35848247]
[1760817609252,0.69,186.65,186.63,5.35848247]
[1760817609459,4.15286024,186.64,186.59,0.66]
[1760817609667,3.46286024,186.63,186.61,6.0187088]
[1760817609843,4.15286024,186.63,186.61,6.0187088]
[1760817610043,4.15286024,186.63,186.6,0.66]
[1760817610248,4.15286024,186.63,186.6,16.77387135]
[1760817610449,4.15286024,186.63,186.6,0.66]
[1760817610674,3.46286024,186.63,186.61,0.66]
[1760817610847,3.46286024,186.63,186.6,16.77473692]
[1760817611053,3.46286024,186.63,186.6,0.66]
[1760817611358,3.46286024,186.64,186.61,0.66]
[1760817611973,3.46286024,186.64,186.62,0.66]
[1760817612567,102.1,186.68,186.62,0.66]
[1760817612772,3.46286024,186.66,186.62,0.66]
[1760817613272,3.46286024,186.66,186.63,0.66]
[1760817613866,3.46286024,186.67,186.62,5.35838677]
[1760817614180,3.46286024,186.66,186.63,0.71]
[1760817614565,0.78,186.72,186.64,3.46286024]
[1760817614768,3.46286024,186.7,186.65,0.71]
[1760817615086,3.46286024,186.68,186.64,16.1095449]
[1760817615380,4.14286024,186.68,186.64,0.71]
[1760817615682,3.46286024,186.67,186.64,16.8195449]
[1760817616678,3.46286024,186.66,186.63,6.06814112]
[1760817616881,3.46286024,186.66,186.64,0.71]
[1760817617178,4.14286024,186.66,186.63,16.11214049]
[1760817617482,3.46286024,186.65,186.6,8.82166898]
[1760817617664,102.1,186.69,186.61,16.82387135]
[1760817617665,3.46286024,186.64,186.61,16.82387135]
[1760817617859,102.1,186.69,186.62,0.71]
[1760817618081,3.46286024,186.65,186.62,0.71]
[1760817618280,3.46286024,186.65,186.63,0.71]
[1760817622692,3.46286024,186.66,186.64,0.71]
[1760817624068,4.14286024,186.66,186.62,22.1805869]
[1760817625068,4.14286024,186.66,186.62,21.4705869]
[1760817625272,4.14286024,186.66,186.63,0.71]
[1760817625472,3.46286024,186.65,186.62,21.1805869]
[1760817625772,4.14286024,186.65,186.62,21.1805869]
[1760817626384,0.68,186.64,186.62,15.82214049]
[1760817626969,4.14286024,186.64,186.62,15.82214049]
[1760817627170,3.46286024,186.64,186.62,15.82214049]
[1760817627468,4.14286024,186.65,186.62,21.89058388]
[1760817628902,4.14286024,186.65,186.62,15.82214049]
[1760817629392,4.14286024,186.65,186.62,21.89060392]
[1760817631799,102.1,186.68,186.62,21.89060392]
[1760817631800,0.68,186.66,186.62,21.89060392]
[1760817631999,3.46286024,186.65,186.62,21.89060392]
[1760817632687,4.14286024,186.65,186.62,16.53214049]
[1760817633397,4.14286024,186.64,186.59,5.35918887]
[1760817633602,3.46286024,186.61,186.56,0.71]
[1760817633777,4.14286024,186.61,186.58,16.11560258]
[1760817633979,4.14286024,186.61,186.58,16.82560258]
[1760817634198,4.14286024,186.61,186.58,0.71]
[1760817634698,0.68,186.6,186.57,21.4754209]
[1760817635084,3.46286024,186.6,186.57,21.4754209]
[1760817635408,3.46286024,186.61,186.57,5.35981832]
[1760817635579,3.46286024,186.62,186.58,0.71]
[1760817636298,3.46286024,186.64,186.58,20.28932858]
[1760817636602,4.14286024,186.65,186.59,4.17286024]
[1760817636807,4.14286024,186.65,186.6,6.0690568]
[1760817636996,4.14286024,186.65,186.61,0.71]
[1760817637396,4.14286024,186.64,186.6,16.11387135]
[1760817637591,3.46286024,186.62,186.59,6.06926818]
[1760817637781,4.14286024,186.61,186.59,16.11473692]
[1760817638104,4.14286024,186.61,186.57,6.06964095]
[1760817638282,3.46286024,186.62,186.58,16.82473692]
[1760817638476,0.68,186.61,186.58,16.82473692]
[1760817638682,0.68,186.61,186.58,22.18430233]
[1760817638883,0.68,186.61,186.58,5.35956541]
[1760817639091,0.68,186.61,186.58,6.06956541]
[1760817639291,0.68,186.61,186.58,9.53242565]
[1760817639499,3.46286024,186.62,186.58,9.53242565]
[1760817639707,4.14286024,186.62,186.58,9.53242565]
[1760817640780,4.14286024,186.62,186.58,8.82242565]
[1760817640981,3.46286024,186.62,186.59,0.71]
[1760817641401,105.56286024,186.62,186.59,0.71]
[1760817641905,102.1,186.62,186.59,5.35929093]
[1760817642089,102.1,186.62,186.6,0.71]
[1760817642289,102.1,186.62,186.61,0.71]
[1760817643693,102.1,186.62,186.61,6.06876962]
[1760817644805,102.1,186.62,186.61,12.13753924]
[1760817647411,102.1,186.64,186.61,12.13753924]
[1760817647710,106.22286024,186.66,186.62,0.71]
[1760817647937,102.1,186.66,186.63,0.71]
[1760817648114,102.1,186.68,186.64,0.71]
[1760817648417,102.1,186.68,186.65,0.71]
[1760817648418,102.76,186.68,186.65,0.71]
[1760817648792,102.76,186.68,186.65,12.13753924]
[1760817648988,4.12286024,186.71,186.66,6.06733419]
[1760817649207,4.12286024,186.71,186.67,0.71]
[1760817649510,4.12286024,186.71,186.67,15.60039948]
[1760817649891,0.66,186.71,186.67,15.60039948]
[1760817650097,105.66286024,186.72,186.69,5.35647329]
[1760817650291,106.32286024,186.72,186.69,5.35647329]
[1760817651212,0.66,186.71,186.69,5.35647329]
[1760817651713,102.2,186.72,186.69,5.35647329]
[1760817651903,102.86,186.72,186.69,6.06647329]
[1760817652106,102.2,186.72,186.69,6.06647329]
[1760817652317,0.1,186.72,186.69,5.35647329]
[1760817652497,0.1,186.72,186.7,16.81522077]
[1760817653209,0.1,186.72,186.71,5.35589952]
[1760817654814,0.1,186.72,186.71,6.06589952]
[1760817655626,0.1,186.72,186.71,5.35589952]
[1760817657920,0.76,186.72,186.7,21.46135719]
[1760817658122,0.76,186.72,186.7,5.35613642]
[1760817658299,0.76,186.72,186.7,9.92392353]
[1760817658620,0.1,186.72,186.7,9.92392353]
[1760817659121,0.66,186.71,186.7,4.56778711]
[1760817659911,0.1,186.72,186.7,14.09683374]
[1760817660105,0.1,186.72,186.71,0.71]
[1760817660622,0.1,186.72,186.71,4.56778711]
[1760817661412,0.1,186.72,186.71,9.92368663]
[1760817662611,0.76,186.72,186.71,9.92368663]
[1760817663508,0.1,186.72,186.71,9.92368663]
[1760817663910,0.76,186.72,186.71,9.92368663]
[1760817664223,0.76,186.72,186.71,4.56778711]
[1760817665007,0.76,186.72,186.68,18.74767103]
[1760817665204,0.66,186.71,186.7,5.35615143]
[1760817665614,3.56286024,186.72,186.7,5.35615143]
[1760817665922,0.1,186.72,186.7,5.35615143]
[1760817666427,0.1,186.72,186.7,10.71216744]
[1760817666624,0.76,186.72,186.7,10.71216744]
[1760817669920,0.1,186.72,186.7,10.71216744]
[1760817670824,0.79,186.72,186.7,10.71216744]
[1760817671127,3.46286024,186.71,186.68,0.66]
[1760817671318,3.46286024,186.71,186.69,8.69064735]
[1760817671807,3.46286024,186.71,186.69,8.03064735]
[1760817672008,3.46286024,186.71,186.69,8.69064735]
[1760817672926,4.25286024,186.72,186.69,14.04696752]
[1760817673516,3.56286024,186.72,186.7,0.71]
[1760817673917,3.56286024,186.72,186.69,13.38696752]
[1760817674128,4.25286024,186.72,186.69,14.09696752]
[1760817677142,0.69,186.71,186.69,13.38696752]
[1760817677646,0.69,186.7,186.65,23.59]
[1760817677811,4.15286024,186.69,186.65,6.06756894]
[1760817678015,0.1,186.72,186.66,4.56778711]
[1760817678016,4.15286024,186.68,186.66,4.56778711]
[1760817679542,0.69,186.67,186.66,4.56778711]
[1760817679725,0.69,186.67,186.65,5.35756894]
[1760817680046,3.46286024,186.68,186.65,6.06756894]
[1760817680542,3.46286024,186.68,186.65,3.46286024]
[1760817680731,4.15286024,186.67,186.65,3.46286024]
[1760817680930,4.15286024,186.66,186.63,5.35819535]
[1760817681134,4.15286024,186.66,186.63,22.17860535]
[1760817681533,3.46286024,186.67,186.64,0.71]
[1760817681745,4.15286024,186.67,186.64,0.71]
[1760817682122,3.46286024,186.67,186.64,6.06763388]
[1760817683130,3.46286024,186.68,186.65,0.71]
[1760817683343,3.46286024,186.68,186.64,8.82049412]
[1760817683521,3.46286024,186.68,186.66,0.71]
[1760817684161,3.46286024,186.68,186.65,5.35737297]
[1760817684331,4.15286024,186.68,186.65,6.06737297]
[1760817684532,3.46286024,186.68,186.65,6.06737297]
[1760817684729,4.15286024,186.68,186.65,6.06737297]
[1760817685137,3.46286024,186.68,186.65,5.35737297]
[1760817685347,0.69,186.67,186.65,5.35737297]
[1760817686230,0.69,186.67,186.64,5.35790827]
[1760817686437,0.69,186.67,186.64,6.06790827]
[1760817686842,3.46286024,186.68,186.64,5.35790827]
[1760817687042,4.15286024,186.68,186.65,0.71]
[1760817687653,0.69,186.68,186.65,0.71]
[1760817688024,0.69,186.68,186.64,5.35790827]
[1760817688230,0.69,186.67,186.64,6.06790827]
[1760817689346,3.46286024,186.68,186.64,6.06790827]
[1760817689555,4.15286024,186.68,186.64,6.06790827]
[1760817691353,3.46286024,186.68,186.64,6.06790827]
[1760817691757,0.69,186.67,186.64,6.06790827]
[1760817692561,0.69,186.66,186.63,11.42551836]
[1760817694850,0.69,186.66,186.63,10.71551836]
[1760817695045,0.69,186.66,186.63,5.35814539]
[1760817695251,3.46286024,186.67,186.63,5.35814539]
[1760817695557,0.69,186.66,186.63,5.35814539]
[1760817695765,0.69,186.66,186.63,6.06814539]
[1760817696236,3.46286024,186.67,186.63,6.06814539]
[1760817696560,102.1,186.7,186.64,0.71]
[1760817696561,102.79,186.7,186.64,0.71]
[1760817696765,3.46286024,186.68,186.64,0.71]
[1760817697751,106.25286024,186.69,186.64,0.71]
[1760817698760,106.25286024,186.69,186.65,5.35762121]
[1760817699066,106.25286024,186.69,186.65,6.06762121]
[1760817699365,0.69,186.68,186.65,5.35762121]
[1760817699662,0.69,186.67,186.65,5.35762121]
[1760817700560,0.69,186.67,186.64,5.35790827]
[1760817700770,0.69,186.67,186.64,6.06790827]
[1760817702270,106.25286024,186.69,186.65,0.71]
[1760817702463,102.1,186.69,186.65,4.17286024]
[1760817702638,102.1,186.69,186.65,20.28154013]
[1760817702837,102.1,186.69,186.66,0.71]
[1760817703032,102.1,186.69,186.67,0.71]
[1760817703559,102.1,186.69,186.67,6.06704128]
[1760817704669,102.1,186.69,186.68,0.7]
[1760817706764,102.1,186.69,186.66,34.85848463]
[1760817706765,102.1,186.69,186.66,33.66401068]
[1760817706983,102.1,186.69,186.67,0.7]
[1760817707382,102.1,186.69,186.67,6.05697536]
[1760817707579,102.1,186.69,186.67,5.35697536]
[1760817707982,102.1,186.69,186.67,6.05697536]
[1760817712796,102.1,186.69,186.67,5.35697536]
[1760817714490,102.1,186.69,186.67,21.46479033]
[1760817715914,102.1,186.69,186.67,22.16479033]
[1760817716193,102.81,186.69,186.67,21.46479033]
[1760817718609,0.71,186.68,186.67,21.46479033]
[1760817720617,0.71,186.68,186.64,14.09476235]
[1760817720618,0.71,186.68,186.66,5.35724857]
[1760817720812,0.71,186.67,186.66,5.35724857]
[1760817721011,0.71,186.67,186.66,21.46592846]
[1760817721931,0.71,186.67,186.66,16.10867989]
[1760817722111,4.17286024,186.67,186.66,16.10867989]
[1760817722500,4.17286024,186.67,186.61,5.35848674]
[1760817722695,0.71,186.66,186.63,16.10867989]
[1760817722913,3.46286024,186.64,186.63,16.10867989]
[1760817723120,3.46286024,186.64,186.59,5.35928102]
[1760817723315,4.17286024,186.63,186.59,21.47315237]
[1760817723525,4.17286024,186.62,186.59,21.47315237]
[1760817723842,0.71,186.61,186.57,5.35987202]
[1760817724012,3.46286024,186.62,186.58,16.11560258]